fUST/lending_fUST_20250120
["ID","MTS","AMOUNT","RATE_DAILY","PERIOD"]
[349703844,1737385834389,-500.0,0.00021917,3]
[349703845,1737385834399,-3265.25,0.00021917,3]
[349703846,1737385834408,-500.0,0.00021917,3]
[349703847,1737385834418,-500.0,0.00021917,3]
[349703848,1737385834428,-500.0,0.00021917,3]
[349703849,1737385834438,-500.0,0.00021917,3]
[349703850,1737385834447,-500.0,0.00021917,3]
[349703851,1737385834457,-500.74306221,0.00021917,3]
[349703852,1737385834466,-500.0,0.00021917,3]
[349703853,1737385834476,-500.0,0.00021917,3]
[349703854,1737385834485,-500.0,0.00021917,3]
[349703855,1737385834496,-500.0,0.00021917,3]
[349703856,1737385834506,-500.0,0.00021917,3]
[349703857,1737385834516,-500.0,0.00021917,3]
[349703858,1737385834526,-500.0,0.00021917,3]
[349703859,1737385834539,-500.0,0.00021917,3]
[349703860,1737385834548,-500.0,0.00021917,3]
[349703861,1737385834558,-500.0,0.00021917,3]
[349703862,1737385834568,-500.0,0.00021917,3]
[349703863,1737385834579,-500.0,0.00021917,3]
[349703864,1737385834589,-500.0,0.00021917,3]
[349703865,1737385834599,-500.0,0.00021917,3]
[349703866,1737385834611,-500.0,0.00021917,3]
[349703867,1737385834620,-500.0,0.00021917,3]
[349703868,1737385834629,-500.0,0.00021917,3]
[349703869,1737385834643,-414.51564704,0.00021917,3]
[349703870,1737385834653,-500.0,0.00021917,3]
[349703871,1737385834662,-500.0,0.00021917,3]
[349703872,1737385834672,-500.0,0.00021917,3]
[349703873,1737385834682,-500.0,0.00021917,3]
[349703874,1737385834692,-500.0,0.00021917,3]
[349703875,1737385834702,-500.0,0.00021917,3]
[349703876,1737385834711,-500.0,0.00021917,3]
[349703877,1737385834720,-500.0,0.00021917,3]
[349703878,1737385834730,-500.0,0.00021917,3]
[349703879,1737385834739,-500.0,0.00021917,3]
[349703880,1737385834749,-575.97,0.00021917,3]
[349703881,1737385834759,-500.0,0.00021917,3]
[349703882,1737385834768,-500.0,0.00021917,3]
[349703883,1737385834778,-500.0,0.00021917,3]
[349703884,1737385834787,-500.0,0.00021917,3]
[349703885,1737385834797,-500.0,0.00021917,3]
[349703886,1737385834807,-500.0,0.00021917,3]
[349703887,1737385834816,-500.0,0.00021917,3]
[349703888,1737385834825,-500.0,0.00021917,3]
[349703889,1737385834835,-623.6162765,0.00021917,3]
[349703890,1737385834844,-500.0,0.00021917,3]
[349703891,1737385834853,-500.0,0.00021917,3]
[349703892,1737385834862,-500.0,0.00021917,3]
[349703893,1737385834872,-500.58115671,0.00021917,3]
[349703894,1737385834885,-500.0,0.00021917,3]
[349703895,1737385834894,-500.0,0.00021917,3]
[349703896,1737385834903,-500.0,0.00021917,3]
[349703897,1737385834912,-500.0,0.00021917,3]
[349703898,1737385834921,-503.25247626,0.00021917,3]
[349703899,1737385834930,-500.0,0.00021917,3]
[349703900,1737385834939,-500.0,0.00021917,3]
[349703901,1737385834949,-604.24,0.00021917,3]
[349703902,1737385834962,-500.0,0.00021917,3]
[349703903,1737385834971,-500.0,0.00021917,3]
[349703904,1737385834981,-500.0,0.00021917,3]
[349703905,1737385834990,-500.0,0.00021917,3]
[349703906,1737385835000,-500.0,0.00021917,3]
[349703907,1737385835009,-500.0,0.00021917,3]
[349703908,1737385835018,-500.0,0.00021917,3]
[349703909,1737385835027,-500.0,0.00021917,3]
[349703910,1737385835036,-500.0,0.00021917,3]
[349703911,1737385835045,-500.0,0.00021917,3]
[349703912,1737385835055,-500.0,0.00021917,3]
[349703913,1737385835065,-506.42845187,0.00021917,3]
[349703914,1737385835074,-500.0,0.00021917,3]
[349703915,1737385835083,-500.0,0.00021917,3]
[349703916,1737385835092,-613.10156491,0.00021917,3]
[349703917,1737385835101,-500.0,0.00021917,3]
[349703918,1737385835112,-643.34541767,0.00021917,3]
[349703919,1737385835121,-500.0,0.00021917,3]
[349703920,1737385835130,-500.0,0.00021917,3]
[349703921,1737385835142,-500.0,0.00021917,3]
[349703922,1737385835151,-500.0,0.00021917,3]
[349703923,1737385835160,-500.0,0.00021917,3]
[349703924,1737385835169,-500.0,0.00021917,3]
[349703925,1737385835179,-500.0,0.00021917,3]
[349703926,1737385835188,-500.0,0.00021917,3]
[349703927,1737385835197,-555.83285559,0.00021917,3]
[349703928,1737385835207,-500.0,0.00021917,3]
[349703929,1737385835216,-528.87529124,0.00021917,3]
[349703930,1737385835226,-236.52116316,0.00021917,3]
[349703931,1737385835235,-500.0,0.00021917,3]
[349703932,1737385835245,-500.0,0.00021917,3]
[349703933,1737385835255,-500.0,0.00021917,3]
[349703934,1737385835264,-500.0,0.00021917,3]
[349703935,1737385835273,-500.0,0.00021917,3]
[349703936,1737385835284,-500.0,0.00021917,3]
[349703937,1737385835293,-500.0,0.00021917,3]
[349703938,1737385835398,-500.0,0.00021917,3]
[349703939,1737385835408,-500.0,0.00021917,3]
[349703940,1737385835417,-500.0,0.00021917,3]
[349703941,1737385835427,-500.0,0.00021917,3]
[349703942,1737385835436,-500.0,0.00021917,3]
[349703943,1737385835446,-500.0,0.00021917,3]
[349703944,1737385835457,-500.0,0.00021917,3]
[349703945,1737385835469,-500.0,0.00021917,3]
[349703946,1737385835478,-500.0,0.00021917,3]
[349703947,1737385835489,-500.0,0.00021917,3]
[349703948,1737385835498,-500.0,0.00021917,3]
[349703949,1737385835507,-500.0,0.00021917,3]
[349703950,1737385835518,-500.0,0.00021917,3]
[349703951,1737385835528,-500.0,0.00021917,3]
[349703952,1737385835539,-500.0,0.00021917,3]
[349703953,1737385835548,-501.55387373,0.00021917,3]
[349703954,1737385835558,-500.0,0.00021917,3]
[349703955,1737385835567,-500.0,0.00021917,3]
[349703956,1737385835578,-500.0,0.00021917,3]
[349703957,1737385835587,-500.0,0.00021917,3]
[349703958,1737385835597,-500.0,0.00021917,3]
[349703959,1737385835607,-500.0,0.00021917,3]
[349703960,1737385835617,-500.0,0.00021917,3]
[349703961,1737385835626,-500.0,0.00021917,3]
[349703962,1737385835637,-500.0,0.00021917,3]
[349703963,1737385835646,-500.0,0.00021917,3]
[349703964,1737385835656,-500.0,0.00021917,3]
[349703965,1737385835666,-500.0,0.00021917,3]
[349703966,1737385835675,-435.37259606,0.00021917,3]
[349703967,1737385835685,-500.0,0.00021917,3]
[349703968,1737385835694,-703.15,0.00021917,3]
[349703969,1737385835703,-500.0,0.00021917,3]
[349703970,1737385835711,-500.0,0.00021917,3]
[349703971,1737385835721,-500.0,0.00021917,3]
[349703972,1737385835730,-500.0,0.00021917,3]
[349703973,1737385835740,-500.0,0.00021917,3]
[349703974,1737385835749,-500.0,0.00021917,3]
[349703975,1737385835759,-500.0,0.00021917,3]
[349703976,1737385835768,-500.0,0.00021917,3]
[349703977,1737385835777,-310.00981694,0.00021917,3]
[349703978,1737385835787,-500.0,0.00021917,3]
[349703979,1737385835796,-500.0,0.00021917,3]
[349703980,1737385835805,-501.29626383,0.00021917,3]
[349703981,1737385835814,-500.0,0.00021917,3]
[349703982,1737385835823,-500.0,0.00021917,3]
[349703983,1737385835833,-505.85656951,0.00021917,3]
[349703984,1737385835842,-500.0,0.00021917,3]
[349703985,1737385835852,-500.0,0.00021917,3]
[349703986,1737385835862,-500.0,0.00021917,3]
[349703987,1737385835871,-500.0,0.00021917,3]
[349703988,1737385835880,-500.0,0.00021917,3]
[349703989,1737385835890,-500.0,0.00021917,3]
[349703990,1737385835900,-500.0,0.00021917,3]
[349703991,1737385835909,-500.0,0.00021917,3]
[349703992,1737385835918,-500.0,0.00021917,3]
[349703993,1737385835927,-503.52044485,0.00021917,3]
[349703994,1737385835936,-500.0,0.00021917,3]
[349703995,1737385835945,-500.0,0.00021917,3]
[349703996,1737385835955,-500.0,0.00021917,3]
[349703997,1737385835964,-3000.0,0.0002192,2]
[349703998,1737385835973,-500.0,0.00021929,3]
[349703999,1737385835983,-3000.0,0.0002193,2]
[349704000,1737385835992,-3000.0,0.0002194,2]
[349704001,1737385836001,-3000.0,0.0002195,2]
[349704002,1737385836011,-500.0,0.00021959,3]
[349704003,1737385836020,-500.0,0.00021959,3]
[349704004,1737385836029,-1178.19,0.00021959,3]
[349704005,1737385836039,-500.0,0.00021959,2]
[349704006,1737385836048,-642.36909054,0.00021959,2]
[349704007,1737385836057,-500.0,0.00021959,2]
[349704008,1737385836066,-500.0,0.00021959,2]
[349704009,1737385836075,-500.0,0.00021959,2]
[349704010,1737385836084,-500.0,0.00021959,2]
[349704011,1737385836094,-500.0,0.00021959,2]
[349704012,1737385836103,-500.0,0.00021959,2]
[349704013,1737385836113,-165.30300903,0.00021959,2]
[349704014,1737385836123,-500.0,0.00021959,2]
[349704015,1737385836132,-500.0,0.00021959,2]
[349704016,1737385836141,-500.0,0.00021959,3]
[349704017,1737385836150,-3000.0,0.0002196,2]
[349704018,1737385836160,-3000.0,0.0002197,2]
[349704019,1737385836170,-500.0,0.00021979,3]
[349704020,1737385836179,-3000.0,0.0002198,2]
[349704021,1737385836189,-3000.0,0.0002199,2]
[349704022,1737385836198,-3000.0,0.00022,2]
[349704023,1737385836207,-1408.63324575,0.00022003,3]
[349704024,1737385836225,-3000.0,0.0002201,2]
[349704025,1737385836234,-3000.0,0.0002202,2]
[349704026,1737385836243,-3000.0,0.0002203,2]
[349704027,1737385836252,-3000.0,0.0002204,2]
[349704028,1737385836261,-500.0,0.00022049,3]
[349704029,1737385836270,-3000.0,0.0002205,2]
[349704030,1737385836280,-500.0,0.00022054,3]
[349704031,1737385836289,-500.0,0.00022054,3]
[349704032,1737385836299,-500.0,0.00022054,3]
[349704033,1737385836308,-500.0,0.00022054,3]
[349704034,1737385836318,-500.0,0.00022054,3]
[349704035,1737385836327,-500.0,0.00022054,3]
[349704036,1737385836336,-500.0,0.00022054,3]
[349704037,1737385836345,-150.48,0.00022054,3]
[349704038,1737385836354,-500.0,0.00022054,3]
[349704039,1737385836363,-500.0,0.00022054,3]
[349704040,1737385836372,-500.0,0.00022054,3]
[349704041,1737385836381,-500.0,0.00022054,3]
[349704042,1737385836391,-500.0,0.00022054,3]
[349704043,1737385836400,-500.0,0.00022054,3]
[349704044,1737385836409,-500.0,0.00022054,3]
[349704045,1737385836418,-500.0,0.00022054,3]
[349704046,1737385836427,-500.0,0.00022054,3]
[349704047,1737385836436,-500.0,0.00022054,3]
[349704048,1737385836446,-500.0,0.00022054,2]
[349704049,1737385836455,-500.0,0.00022054,3]
[349704050,1737385836464,-452.49,0.00022054,3]
[349704051,1737385836474,-500.0,0.00022054,3]
[349704052,1737385836483,-500.0,0.00022054,3]
[349704053,1737385836493,-500.0,0.00022054,3]
[349704054,1737385836502,-500.26325349,0.00022054,3]
[349704055,1737385836510,-500.0,0.00022054,3]
[349704056,1737385836519,-500.0,0.00022054,3]
[349704057,1737385836530,-500.0,0.00022054,3]
[349704058,1737385836540,-500.0,0.00022054,3]
[349704059,1737385836549,-500.0,0.00022054,3]
[349704060,1737385836558,-500.0,0.00022054,3]
[349704061,1737385836567,-1382.34939703,0.00022054,3]
[349704074,1737385838502,-500.0,0.00021917,3]
[349704076,1737385838512,-1882.90060297,0.00022054,3]
[349704077,1737385838523,-500.0,0.00022054,3]
[349704078,1737385838534,-500.0,0.00022054,3]
[349704079,1737385838547,-500.0,0.00022054,3]
[349704080,1737385838556,-500.0,0.00022054,3]
[349704081,1737385838566,-500.0,0.00022054,3]
[349704082,1737385838576,-58.47290326,0.00022054,3]
[349704083,1737385838591,-441.52709674,0.00022054,3]
[349704084,1737385838601,-500.0,0.00022054,3]
[349704085,1737385838611,-500.0,0.00022054,3]
[349704086,1737385838621,-500.0,0.00022054,3]
[349704087,1737385838631,-500.0,0.00022054,3]
[349704088,1737385838643,-500.0,0.00022054,3]
[349704089,1737385838653,-216.33267702,0.00022054,3]
[349704090,1737385838664,-390.39197445,0.00022054,3]
[349704091,1737385838674,-500.0,0.00022054,3]
[349704092,1737385838682,-500.0,0.00022054,3]
[349704093,1737385838692,-354.74300017,0.00022054,3]
[349704094,1737385838703,-145.25699983,0.00022054,3]
[349704096,1737385838713,-500.0,0.00022054,3]
[349704098,1737385838722,-500.0,0.00022054,3]
[349704100,1737385838732,-300.0,0.00022054,3]
[349704102,1737385838741,-500.0,0.00022054,3]
[349704104,1737385838750,-604.24,0.00022054,3]
[349704106,1737385838760,-500.0,0.00022054,3]
[349704108,1737385838769,-500.0,0.00022054,3]
[349704110,1737385838778,-500.0,0.00022054,3]
[349704112,1737385838788,-500.0,0.00022054,3]
[349704114,1737385838797,-596.92747546,0.00022054,3]
[349704116,1737385838806,-500.0,0.00022054,3]
[349704118,1737385838816,-503.51070332,0.00022054,3]
[349704120,1737385838825,-500.0,0.00022054,3]
[349704122,1737385838835,-500.0,0.00022054,3]
[349704124,1737385838844,-500.0,0.00022054,3]
[349704126,1737385838853,-500.0,0.00022054,3]
[349704128,1737385838862,-379.17032955,0.00022054,3]
[349704130,1737385838871,-500.0,0.00022054,3]
[349704132,1737385838881,-500.0,0.00022054,3]
[349704134,1737385838894,-500.0,0.00022054,3]
[349704136,1737385838904,-500.0,0.00022054,3]
[349704138,1737385838914,-569.54463316,0.00022054,3]
[349704140,1737385838924,-500.0,0.00022054,3]
[349704142,1737385838934,-318.55170798,0.00022054,3]
[349704144,1737385838943,-501.71081118,0.00022054,3]
[349704146,1737385838953,-500.0,0.00022054,3]
[349704148,1737385838962,-500.0,0.00022054,3]
[349704150,1737385838971,-500.0,0.00022054,3]
[349704152,1737385838980,-500.0,0.00022054,3]
[349704154,1737385838989,-500.0,0.00022054,3]
[349704156,1737385838999,-490.08645015,0.00022054,3]
[349704158,1737385839008,-703.15,0.00022054,3]
[349704160,1737385839017,-500.0,0.00022054,3]
[349704162,1737385839026,-500.0,0.00022054,3]
[349704164,1737385839035,-500.0,0.00022054,3]
[349704166,1737385839045,-500.0,0.00022054,3]
[349704167,1737385839054,-500.0,0.00022054,3]
[349704168,1737385839063,-500.0,0.00022054,3]
[349704169,1737385839073,-500.0,0.00022054,3]
[349704170,1737385839083,-500.0,0.00022054,3]
[349704171,1737385839093,-500.0,0.00022054,3]
[349704172,1737385839102,-500.0,0.00022054,3]
[349704173,1737385839113,-503.86580727,0.00022054,3]
[349704174,1737385839122,-500.0,0.00022054,3]
[349704175,1737385839132,-500.0,0.00022054,3]
[349704176,1737385839145,-3000.0,0.0002206,2]
[349704177,1737385839155,-3000.0,0.0002207,2]
[349704178,1737385839164,-3000.0,0.0002208,2]
[349704179,1737385839173,-3000.0,0.0002209,2]
[349704180,1737385839183,-500.0,0.00022096,3]
[349704181,1737385839192,-1178.19,0.00022096,3]
[349704182,1737385839201,-500.0,0.00022096,3]
[349704183,1737385839210,-3000.0,0.000221,2]
[349704184,1737385839219,-1408.63324575,0.00022107,3]
[349704185,1737385839229,-3000.0,0.0002211,2]
[349704186,1737385839238,-3000.0,0.0002212,2]
[349704187,1737385839247,-3000.0,0.0002213,2]
[349704188,1737385839256,-3000.0,0.0002214,2]
[349704189,1737385839266,-3000.0,0.0002215,2]
[349704190,1737385839275,-3000.0,0.0002216,2]
[349704191,1737385839284,-3000.0,0.0002217,2]
[349704192,1737385839293,-3000.0,0.0002218,2]
[349704193,1737385839303,-3000.0,0.0002219,2]
[349704194,1737385839311,-575.00035546,0.00022191,3]
[349704195,1737385839320,-500.0,0.00022191,3]
[349704196,1737385839330,-500.0,0.00022191,3]
[349704197,1737385839339,-500.0,0.00022191,3]
[349704198,1737385839348,-500.0,0.00022191,3]
[349704199,1737385839357,-500.0,0.00022191,3]
[349704200,1737385839366,-500.0,0.00022191,3]
[349704201,1737385839375,-500.0,0.00022191,3]
[349704202,1737385839385,-500.0,0.00022191,3]
[349704203,1737385839401,-3265.25,0.00022191,3]
[349704204,1737385839410,-500.0,0.00022191,3]
[349704205,1737385839419,-500.0,0.00022191,3]
[349704206,1737385839431,-500.0,0.00022191,3]
[349704207,1737385839441,-500.0,0.00022191,3]
[349704208,1737385839451,-500.0,0.00022191,3]
[349704209,1737385839461,-500.0,0.00022191,3]
[349704210,1737385839472,-500.0,0.00022191,3]
[349704211,1737385839481,-500.0,0.00022191,3]
[349704212,1737385839581,-500.0,0.00022191,3]
[349704213,1737385839592,-500.0,0.00022191,3]
[349704214,1737385839603,-500.0,0.00022191,3]
[349704215,1737385839612,-500.0,0.00022191,3]
[349704216,1737385839621,-604.24,0.00022191,3]
[349704217,1737385839631,-500.0,0.00022191,3]
[349704218,1737385839644,-241.68578211,0.00022191,3]
[349704219,1737385839653,-500.0,0.00022191,3]
[349704220,1737385839663,-500.0,0.00022191,3]
[349704221,1737385839673,-500.0,0.00022191,3]
[349704222,1737385839682,-500.0,0.00022191,3]
[349704223,1737385839693,-500.0,0.00022191,3]
[349704224,1737385839703,-500.0,0.00022191,3]
[349704225,1737385839713,-500.0,0.00022191,3]
[349704226,1737385839723,-500.0,0.00022191,3]
[349704227,1737385839732,-481.54566799,0.00022191,3]
[349704228,1737385839741,-500.0,0.00022191,3]
[349704229,1737385839752,-500.0,0.00022191,3]
[349704230,1737385839761,-500.0,0.00022191,3]
[349704231,1737385839770,-703.15,0.00022191,3]
[349704232,1737385839781,-500.0,0.00022191,3]
[349704233,1737385839791,-500.0,0.00022191,3]
[349704234,1737385839803,-500.0,0.00022191,3]
[349704235,1737385839813,-500.0,0.00022191,3]
[349704236,1737385839822,-500.0,0.00022191,3]
[349704237,1737385839831,-407.18829591,0.00022191,3]
[349704238,1737385839840,-500.0,0.00022191,3]
[349704239,1737385839850,-3000.0,0.000222,2]
[349704240,1737385839859,-3000.0,0.0002221,2]
[349704241,1737385839869,-1408.63324575,0.0002221,3]
[349704242,1737385839878,-5882.141853,0.0002222,2]
[349704243,1737385839889,-156.477432,0.00022233,3]
[349704245,1737385839899,-1178.19,0.00022233,3]
[349704247,1737385839908,-500.0,0.00022233,3]
[349704249,1737385839917,-1408.63324575,0.00022314,3]
[349704250,1737385839927,-500.0,0.00022328,3]
[349704251,1737385839937,-500.0,0.00022328,3]
[349704252,1737385839947,-500.0,0.00022328,3]
[349704253,1737385839957,-621.15,0.00022328,3]
[349704255,1737385839966,-180.78,0.00022328,3]
[349704258,1737385839976,-3265.25,0.00022328,3]
[349704260,1737385839987,-500.0,0.00022328,3]
[349704262,1737385839996,-500.0,0.00022328,3]
[349704263,1737385840006,-500.0,0.00022328,3]
[349704265,1737385840016,-301.85053774,0.00022328,3]
[349704267,1737385840025,-207.72,0.00022328,3]
[349704269,1737385840035,-604.24,0.00022328,3]
[349704271,1737385840044,-500.0,0.00022328,3]
[349704273,1737385840055,-500.0,0.00022328,3]
[349704274,1737385840064,-500.0,0.00022328,3]
[349704275,1737385840074,-500.0,0.00022328,3]
[349704276,1737385840083,-500.0,0.00022328,3]
[349704277,1737385840093,-485.86200779,0.00022328,3]
[349704278,1737385840104,-500.0,0.00022328,3]
[349704279,1737385840113,-500.0,0.00022328,3]
[349704280,1737385840123,-703.15,0.00022328,3]
[349704281,1737385840133,-500.0,0.00022328,3]
[349704282,1737385840144,-500.0,0.00022328,3]
[349704283,1737385840153,-500.0,0.00022328,3]
[349704284,1737385840162,-500.0,0.00022328,3]
[349704285,1737385840172,-1178.19,0.0002237,3]
[349704286,1737385840181,-1408.63324575,0.00022417,3]
[349704287,1737385840191,-500.0,0.00022465,3]
[349704288,1737385840200,-500.0,0.00022465,3]
[349704289,1737385840209,-294.52484573,0.00022465,3]
[349704291,1737385840219,-3265.25,0.00022465,3]
[349704293,1737385840228,-500.0,0.00022465,3]
[349704295,1737385840237,-604.24,0.00022465,3]
[349704297,1737385840247,-500.0,0.00022465,3]
[349704299,1737385840256,-500.0,0.00022465,3]
[349704300,1737385840266,-230.24,0.00022465,3]
[349704301,1737385840275,-500.0,0.00022465,3]
[349704302,1737385840285,-500.0,0.00022465,3]
[349704303,1737385840294,-500.0,0.00022465,3]
[349704304,1737385840303,-703.15,0.00022465,3]
[349704305,1737385840313,-500.0,0.00022465,3]
[349704307,1737385840327,-457.79,0.00022465,3]
[349704310,1737385840339,-500.0,0.00022465,3]
[349704311,1737385840352,-561.38,0.00022465,3]
[349704313,1737385840366,-1178.19,0.00022507,3]
[349704316,1737385840379,-1408.63324575,0.00022521,3]
[349704318,1737385840393,-353.965781,0.00022601,2]
[349704320,1737385840407,-500.0,0.00022602,3]
[349704322,1737385840419,-500.0,0.00022602,3]
[349704323,1737385840428,-3265.25,0.00022602,3]
[349704325,1737385840439,-500.0,0.00022602,3]
[349704327,1737385840449,-604.24,0.00022602,3]
[349704329,1737385840460,-500.0,0.00022602,3]
[349704331,1737385840470,-500.0,0.00022602,3]
[349704333,1737385840479,-500.0,0.00022602,3]
[349704335,1737385840488,-500.0,0.00022602,3]
[349704337,1737385840498,-703.15,0.00022602,3]
[349704339,1737385840510,-500.0,0.00022602,3]
[349704341,1737385840519,-500.0,0.00022606,2]
[349704343,1737385840529,-1408.63324575,0.00022624,3]
[349704345,1737385840542,-395.0,0.00022631,2]
[349704347,1737385840553,-1178.19,0.00022644,3]
[349704349,1737385840562,-1408.63324575,0.00022728,3]
[349704351,1737385840571,-500.0,0.00022739,3]
[349704353,1737385840582,-500.0,0.00022739,3]
[349704355,1737385840591,-3265.25,0.00022739,3]
[349704357,1737385840601,-500.0,0.00022739,3]
[349704359,1737385840610,-604.24,0.00022739,3]
[349704361,1737385840621,-500.0,0.00022739,3]
[349704363,1737385840631,-500.0,0.00022739,3]
[349704365,1737385840642,-500.0,0.00022739,3]
[349704367,1737385840651,-500.0,0.00022739,3]
[349704369,1737385840661,-703.15,0.00022739,3]
[349704371,1737385840670,-1178.19,0.00022781,3]
[349704373,1737385840679,-1408.63324575,0.00022831,3]
[349704375,1737385840689,-500.0,0.00022876,3]
[349704377,1737385840698,-500.0,0.00022876,3]
[349704379,1737385840708,-3265.25,0.00022876,3]
[349704381,1737385840717,-500.0,0.00022876,3]
[349704383,1737385840727,-604.24,0.00022876,3]
[349704385,1737385840736,-500.0,0.00022876,3]
[349704387,1737385840745,-500.0,0.00022876,3]
[349704389,1737385840755,-204.00636478,0.00022876,3]
[349704390,1737385840764,-175.18,0.00022876,3]
[349704391,1737385840773,-703.15,0.00022876,3]
[349704393,1737385840782,-1178.19,0.00022918,3]
[349704395,1737385840792,-1408.63324575,0.00022934,3]
[349704397,1737385840801,-500.0,0.0002295,2]
[349704399,1737385840811,-501.6981809,0.00022973,2]
[349704401,1737385840822,-500.0,0.00022996,3]
[349704403,1737385840836,-500.0,0.00022996,3]
[349704405,1737385840846,-500.0,0.00022996,3]
[349704407,1737385840855,-500.0,0.00022996,3]
[349704408,1737385840865,-500.0,0.00022996,3]
[349704409,1737385840874,-500.0,0.00022996,3]
[349704410,1737385840884,-500.0,0.00022996,3]
[349704411,1737385840895,-500.0,0.00022996,3]
[349704413,1737385840905,-500.0,0.00022996,3]
[349704415,1737385840914,-500.0,0.00022996,3]
[349704417,1737385840923,-500.0,0.00022996,3]
[349704419,1737385840931,-502.34344684,0.00022996,3]
[349704421,1737385840940,-500.0,0.00022996,3]
[349704422,1737385840950,-500.0,0.00022996,3]
[349704423,1737385840959,-509.36848022,0.00022996,3]
[349704425,1737385840968,-500.0,0.00022996,3]
[349704427,1737385840978,-501.29567966,0.00022996,3]
[349704429,1737385840987,-500.0,0.00022996,3]
[349704431,1737385840996,-500.0,0.00022996,3]
[349704433,1737385841006,-500.0,0.00022996,3]
[349704435,1737385841015,-500.0,0.00022996,3]
[349704437,1737385841025,-500.0,0.00022996,3]
[349704439,1737385841034,-500.0,0.00022996,3]
[349704441,1737385841043,-486.91169362,0.00022996,3]
[349704443,1737385841052,-500.0,0.00022996,3]
[349704445,1737385841061,-500.0,0.00022997,3]
[349704447,1737385841070,-500.0,0.00022997,3]
[349704449,1737385841079,-505.533981,0.00022997,3]
[349704451,1737385841089,-500.0,0.00022997,3]
[349704453,1737385841098,-500.0,0.00022997,3]
[349704455,1737385841109,-500.0,0.00022997,3]
[349704457,1737385841118,-500.0,0.00022997,3]
[349704459,1737385841127,-500.0,0.00022997,3]
[349704461,1737385841138,-500.0,0.00022997,3]
[349704463,1737385841150,-500.0,0.00022997,3]
[349704465,1737385841159,-500.0,0.00022997,3]
[349704467,1737385841169,-500.0,0.00022997,3]
[349704469,1737385841178,-500.0,0.00022997,3]
[349704470,1737385841187,-500.0,0.00022997,3]
[349704473,1737385841197,-500.0,0.00022997,3]
[349704474,1737385841207,-500.0,0.00022997,3]
[349704476,1737385841216,-500.0,0.00022997,3]
[349704478,1737385841225,-500.0,0.00022997,3]
[349704480,1737385841236,-500.0,0.00022997,3]
[349704482,1737385841246,-500.0,0.00022997,3]
[349704483,1737385841256,-500.0,0.00022997,3]
[349704484,1737385841266,-500.0,0.00022997,3]
[349704485,1737385841278,-500.0,0.00022997,3]
[349704486,1737385841290,-502.92755861,0.00022997,3]
[349704487,1737385841303,-500.0,0.00022997,3]
[349704488,1737385841314,-500.0,0.00022997,3]
[349704489,1737385841323,-500.0,0.00022997,3]
[349704490,1737385841332,-500.0,0.00022997,3]
[349704491,1737385841342,-500.0,0.00022997,3]
[349704492,1737385841352,-500.0,0.00022997,3]
[349704493,1737385841362,-500.0,0.00022997,3]
[349704494,1737385841371,-500.0,0.00022997,3]